bitfinex/quotes_ETHUSD_20240710
["timestamp","ask_amount","ask_price","bid_price","bid_amount"]
[1720586201153,3.0,3126.7,3125.2,2.838]
[1720586201497,0.33522753,3126.3,3125.2,2.838]
[1720586202766,0.55,3126.2,3125.2,2.838]
[1720586204808,0.55,3126.2,3124.8,2.838]
[1720586204972,0.55,3126.2,3123.2,4.98651551]
[1720586204973,3.53159646,3126.1,3124.4,2.838]
[1720586205311,1.10869646,3126.0,3124.4,2.838]
[1720586205513,0.55,3125.9,3124.4,2.838]
[1720586205689,1.10869646,3125.8,3124.4,2.838]
[1720586205871,0.71586965,3125.7,3124.4,2.838]
[1720586206519,0.55,3125.7,3124.4,2.838]
[1720586206702,0.55,3125.7,3123.2,0.16089083]
[1720586206703,2.3922,3125.5,3123.2,0.16089083]
[1720586206876,2.3922,3125.5,3123.5,2.838]
[1720586206877,1.10885955,3125.4,3123.5,2.838]
[1720586207185,2.3922,3125.3,3123.5,2.838]
[1720586207385,1.10885955,3125.2,3123.5,2.838]
[1720586207685,4.65885955,3125.2,3123.5,2.838]
[1720586207886,1.10885955,3125.1,3123.5,2.838]
[1720586208085,1.01588595,3125.0,3123.5,2.838]
[1720586208290,1.10885955,3124.9,3123.5,2.838]
[1720586208487,0.55,3124.8,3123.5,2.838]
[1720586208810,0.55,3124.8,3123.1,2.3257]
[1720586208811,1.10919759,3124.7,3123.2,3.787]
[1720586208976,0.55,3124.6,3123.2,3.787]
[1720586209611,3.0,3125.2,3123.6,3.787]
[1720586209807,1.10912052,3125.1,3123.6,3.787]
[1720586210009,1.10912052,3125.0,3123.6,3.787]
[1720586210218,1.1091035,3124.9,3123.6,3.787]
[1720586210571,1.1091035,3124.8,3123.2,3.787]
[1720586210777,1.6746377,3125.1,3123.2,3.787]
[1720586210978,1.65919759,3125.0,3123.2,3.787]
[1720586211209,1.10919759,3124.9,3123.2,3.787]
[1720586211417,1.10919759,3124.8,3123.6,3.787]
[1720586211719,0.55,3125.0,3123.7,0.06401504]
[1720586212221,0.5655342,3125.1,3123.6,3.787]
[1720586212744,0.5655342,3125.1,3123.7,2.56106]
[1720586212880,0.263142,3125.2,3123.7,2.62506927]
[1720586213078,0.263142,3125.2,3123.8,3.06400927]
[1720586213608,0.263142,3125.2,3123.8,3.0]
[1720586214131,0.263142,3125.2,3123.8,3.06400925]
[1720586214337,3.27305125,3125.8,3124.0,6.0735]
[1720586214632,1.10888749,3125.7,3124.1,2.56072]
[1720586214792,1.10888749,3125.6,3124.2,3.06400082]
[1720586215001,2.2717,3125.8,3124.2,3.06400082]
[1720586215397,1.10883358,3125.7,3124.2,3.06400082]
[1720586215614,0.33805336,3125.6,3124.2,3.0]
[1720586215997,0.55,3125.5,3124.2,3.0]
[1720586216199,0.55,3125.5,3124.1,3.0]
[1720586218635,1.67689676,3125.6,3124.1,3.0]
[1720586218636,0.33530539,3125.6,3124.1,3.0]
[1720586218983,0.33530539,3125.6,3124.2,2.56063]
[1720586219384,0.33530539,3125.6,3124.3,2.62455849]
[1720586219650,0.33530539,3125.6,3124.4,6.787]
[1720586220897,1.00353801,3125.8,3124.6,2.2849]
[1720586221097,1.00353801,3126.2,3124.9,3.787]
[1720586221340,1.00353801,3126.4,3125.4,2.2849]
[1720586221547,1.00549418,3126.8,3125.4,7.84456]
[1720586221748,1.00549418,3126.7,3125.4,5.2849]
[1720586222421,1.34070567,3126.8,3125.5,0.06397692]
[1720586222619,0.33521149,3126.8,3125.5,2.62355692]
[1720586222821,1.00549418,3127.0,3126.1,3.787]
[1720586223005,2.01098836,3127.6,3126.1,3.787]
[1720586223006,1.00549418,3127.5,3126.3,2.3387]
[1720586223213,1.00549418,3127.5,3126.4,0.06396154]
[1720586223429,1.34012417,3127.7,3126.7,2.3387]
[1720586223740,1.00498761,3128.5,3127.6,3.787]
[1720586223923,1.00498761,3128.9,3127.6,6.1257]
[1720586224112,0.20081572,3129.0,3127.6,3.787]
[1720586224313,1.00498761,3128.9,3127.6,3.787]
[1720586224574,0.20081572,3129.0,3127.6,3.787]
[1720586224712,0.20081572,3129.0,3127.2,6.787]
[1720586224916,0.20081572,3129.0,3127.2,9.34518]
[1720586225144,1.00498761,3129.1,3127.2,9.34518]
[1720586225355,1.00498761,3129.2,3127.2,9.34518]
[1720586225517,0.33497594,3129.3,3127.2,9.34518]
[1720586225715,0.58188992,3129.2,3127.2,9.34518]
[1720586226624,0.33497594,3129.3,3127.2,9.34518]
[1720586226850,0.33497594,3129.3,3127.1,2.4551]
[1720586226851,1.10780955,3129.2,3127.1,2.4551]
[1720586227159,1.00032479,3129.0,3127.1,2.4551]
[1720586227316,1.55032479,3128.9,3127.1,2.4551]
[1720586227519,0.79313248,3128.8,3127.1,2.4551]
[1720586227756,0.55,3128.7,3127.1,2.4551]
[1720586227960,2.4198,3128.6,3127.1,2.4551]
[1720586228122,3.931,3128.5,3126.5,2.4431]
[1720586228331,4.22798,3128.5,3126.5,2.4431]
[1720586228665,3.0,3128.4,3126.5,2.4431]
[1720586228889,0.55,3128.3,3126.5,2.4431]
[1720586229178,0.55,3128.3,3126.6,0.06395375]
[1720586229465,0.55,3128.3,3126.5,5.00185]
[1720586229642,0.55,3128.4,3126.6,3.0]
[1720586230350,3.29698,3128.5,3126.8,3.787]
[1720586230551,3.29698,3128.5,3126.6,3.06395356]
[1720586230552,0.29698,3128.5,3127.2,3.787]
[1720586230857,0.29698,3128.5,3126.9,3.0]
[1720586231383,0.29698,3128.5,3127.0,0.06394763]
[1720586231543,2.4198,3128.6,3126.9,5.55839]
[1720586231544,0.271678,3128.4,3126.9,5.55839]
[1720586231744,0.271678,3128.4,3126.9,3.0]
[1720586232044,0.271678,3128.4,3127.0,0.06394762]
[1720586232478,0.271678,3128.4,3127.2,3.787]
[1720586233363,2.345,3129.2,3127.3,2.3541]
[1720586233562,2.345,3129.2,3127.6,3.787]
[1720586233768,2.345,3129.2,3127.7,3.0639324]
[1720586233933,0.35512437,3129.6,3127.8,0.06392792]
[1720586234133,2.3254,3129.7,3127.8,0.06392792]
[1720586234677,2.3254,3129.7,3128.1,2.55745]
[1720586235058,2.3254,3129.7,3127.7,3.0]
[1720586235947,0.55,3129.6,3127.7,3.0]
[1720586236143,0.58754,3129.5,3127.7,3.0]
[1720586236444,0.55,3129.4,3127.7,3.0]
[1720586238388,0.58754,3129.5,3127.7,3.0]
[1720586238562,0.58754,3129.5,3127.7,5.55778]
[1720586239065,0.58754,3129.5,3127.7,3.0]
[1720586239271,0.358754,3129.4,3127.7,3.0]
[1720586239465,2.4362,3129.3,3127.6,3.787]
[1720586239691,5.4362,3129.3,3127.3,2.3541]
[1720586239861,0.9175954,3129.2,3127.2,3.787]
[1720586240065,0.9175954,3129.2,3126.0,3.841175]
[1720586240066,2.4362,3129.1,3126.8,6.1799]
[1720586240378,0.72847954,3129.0,3126.8,6.1799]
[1720586240594,1.27847954,3129.0,3126.8,8.73841]
[1720586240763,4.27847954,3129.0,3126.8,8.73841]
[1720586241296,4.27847954,3129.0,3126.8,6.1799]
[1720586241592,0.67146795,3128.9,3126.9,3.0]
[1720586241796,0.55,3128.8,3126.9,3.0]
[1720586241992,2.4362,3128.7,3126.9,3.0]
[1720586242291,0.55,3128.6,3126.9,3.0]
[1720586242492,0.59862,3128.5,3126.9,3.0]
[1720586242690,0.55,3128.4,3126.9,3.0]
[1720586242885,0.55,3128.4,3126.9,3.06394898]
[1720586243067,0.55,3128.4,3126.9,3.0]
[1720586243564,0.59862,3128.5,3127.0,2.55833]
[1720586243766,0.359862,3128.4,3126.9,3.0]
[1720586244893,0.359862,3128.4,3126.9,5.55843]
[1720586245401,0.359862,3128.4,3126.9,3.0]
[1720586245621,0.55,3128.3,3126.9,3.0]
[1720586245765,0.55,3128.3,3126.4,3.787]
[1720586245972,2.2995,3128.2,3126.2,2.3135]
[1720586246177,0.28495,3128.1,3126.2,2.3135]
[1720586246368,0.55,3128.0,3126.2,2.3135]
[1720586246858,0.55,3128.0,3126.3,0.0639604]
[1720586247170,0.55,3128.0,3126.4,3.787]
[1720586249208,0.55,3128.0,3126.2,2.3135]
[1720586249499,1.49167808,3127.9,3126.0,6.34615]
[1720586249698,1.10818308,3127.8,3126.0,6.34615]
[1720586249992,0.383495,3127.9,3125.8,2.71548215]
[1720586249993,0.383495,3127.9,3126.4,3.787]
[1720586250198,0.42685459,3127.8,3126.4,3.787]
[1720586250603,0.88505092,3128.0,3126.4,3.787]
[1720586250758,0.88505092,3128.0,3126.5,2.62271472]
[1720586250956,0.28495,3128.1,3126.6,7.89567]
[1720586251189,2.2995,3128.2,3126.7,0.06394849]
[1720586251399,2.2995,3128.2,3126.9,3.787]
[1720586251602,2.2995,3128.2,3127.0,3.0]
[1720586252673,2.2995,3128.2,3126.6,2.337]
[1720586252906,1.88795046,3128.1,3126.5,3.787]
[1720586253214,1.10800046,3128.0,3126.1,6.0569]
[1720586253378,0.55,3127.9,3126.1,6.0569]
[1720586253557,1.27380051,3127.8,3126.1,6.0569]
[1720586253859,1.10800046,3127.7,3126.4,2.5588]
[1720586254087,1.10800046,3128.0,3126.5,3.787]
[1720586254288,1.10809442,3127.9,3126.6,2.55868]
[1720586254495,2.2995,3128.2,3126.7,2.55857]
[1720586254695,2.2995,3128.2,3126.8,3.0]
[1720586255085,2.2995,3128.2,3126.6,3.0]
[1720586255403,1.3379461,3128.1,3126.6,3.0]
[1720586255606,1.1079961,3128.0,3126.6,3.0]
[1720586256763,3.22995,3128.1,3126.7,0.06395046]
[1720586257172,3.22995,3128.1,3126.6,5.55867]
[1720586257371,3.22995,3128.1,3126.7,0.06394971]
[1720586257814,3.22995,3128.1,3126.6,5.55867]
[1720586259404,3.0,3128.1,3126.6,5.55867]
[1720586259633,2.2995,3128.2,3126.8,2.55851]
[1720586260271,2.2995,3128.2,3127.0,2.55836]
[1720586260804,2.2995,3128.2,3126.8,2.55851]
[1720586261003,2.2995,3128.2,3126.9,3.0]
[1720586261894,2.2995,3128.2,3126.9,5.55843]
[1720586262095,2.2995,3128.2,3127.0,2.55836]
[1720586263114,2.79381035,3128.7,3127.2,2.55818]
[1720586263294,1.10787094,3128.6,3127.2,2.55818]
[1720586263466,0.35666709,3128.6,3127.3,3.0]
[1720586264580,2.4588,3128.7,3127.5,2.833]
[1720586264787,2.4588,3128.7,3127.6,3.06393591]
[1720586265080,1.0005611,3129.3,3127.9,2.833]
[1720586265081,2.3003,3129.3,3127.9,2.833]
[1720586265300,1.3411251,3129.2,3127.9,2.833]
[1720586265512,1.10766084,3129.1,3127.9,2.89693041]
[1720586265811,0.23346426,3129.2,3127.9,2.89693041]
[1720586265812,1.10766084,3129.0,3127.9,2.89693041]
[1720586266019,0.23346426,3129.2,3127.9,2.89693041]
[1720586266176,1.10765224,3129.1,3128.0,5.62144534]
[1720586266376,1.0005611,3129.6,3128.0,5.62144534]
[1720586266571,3.63438147,3129.7,3128.0,9.39644534]
[1720586266572,1.10755968,3129.5,3128.0,9.39644534]
[1720586266878,1.10755968,3129.4,3128.0,9.39644534]
[1720586267085,0.36343815,3129.6,3128.0,9.39644534]
[1720586267304,2.3417,3129.4,3127.6,3.775]
[1720586267604,1.10753557,3129.3,3127.7,3.0]
[1720586267913,3.0,3129.3,3127.8,2.62158531]
[1720586268103,3.0,3129.3,3128.0,2.55746]
[1720586268302,5.3417,3129.4,3128.1,2.62137199]
[1720586268543,5.3417,3129.4,3128.1,7.50635199]
[1720586268722,5.3417,3129.4,3128.2,2.55737]
[1720586268896,2.3417,3129.4,3128.3,2.62120969]
[1720586269235,3.4458611,3129.9,3128.4,3.0]
[1720586269441,1.10737669,3129.8,3128.4,3.0]
[1720586269596,1.0005611,3129.6,3127.6,0.16291854]
[1720586269794,1.0005611,3129.2,3127.5,6.775]
[1720586270109,1.10748357,3129.1,3127.5,9.33288]
[1720586270419,1.0005611,3129.1,3127.6,2.55785]
[1720586270602,3.0,3129.2,3127.6,2.55785]
[1720586271211,3.28181951,3129.3,3127.7,2.55777]
[1720586271439,3.0,3129.2,3127.7,2.55777]
[1720586271732,3.0,3129.2,3127.8,0.06392712]
[1720586271937,6.28181951,3129.3,3127.7,2.55777]
[1720586272294,6.28181951,3129.3,3127.9,3.775]
[1720586272498,5.2775,3129.3,3128.0,2.62144137]
[1720586272802,5.2775,3129.3,3128.0,2.55752]
[1720586272993,2.2775,3129.3,3128.0,2.55752]
[1720586273195,1.00431951,3129.6,3128.2,2.3889]
[1720586273442,1.00431951,3129.7,3128.2,2.3889]
[1720586273609,0.36743927,3129.6,3128.2,2.3889]
[1720586273990,1.00431951,3129.7,3128.2,4.94625]
[1720586274395,2.11180089,3129.6,3128.1,3.0]
[1720586274645,1.00431951,3129.6,3128.1,3.0]
[1720586274936,1.00431951,3129.6,3128.1,5.55746]
[1720586275240,3.0,3129.7,3128.1,3.0]
[1720586275241,1.00431951,3129.5,3128.1,3.0]
[1720586275442,1.00431951,3129.6,3128.0,5.55753]
[1720586275600,1.55431951,3129.5,3128.0,5.55753]
[1720586275999,0.55,3129.5,3128.0,5.55753]
[1720586276217,1.55431951,3129.5,3128.0,3.0]
[1720586277552,1.55348486,3129.5,3128.0,3.0]
[1720586278144,1.00348486,3129.3,3128.0,3.0]
[1720586278451,1.88797981,3129.5,3128.0,3.0]
[1720586278452,1.55348486,3129.2,3128.0,3.0]
[1720586278613,1.55348486,3129.2,3127.7,2.3889]
[1720586278815,0.55,3129.2,3127.7,2.3889]
[1720586279126,1.55348486,3129.2,3127.7,2.3889]
[1720586279332,1.00348486,3129.1,3127.7,2.3889]
[1720586279853,1.00348486,3129.1,3127.6,3.15685207]
[1720586280055,1.00348486,3128.9,3127.6,3.0]
[1720586280223,2.74135297,3128.8,3127.1,3.775]
[1720586280421,2.74135297,3128.8,3126.2,8.12097304]
[1720586280422,2.3023,3128.4,3126.3,6.138]
[1720586280629,1.00348486,3127.8,3126.0,2.55917]
[1720586280873,1.23763133,3127.7,3126.0,2.55917]
[1720586281025,2.8523,3127.6,3126.0,2.55917]
[1720586281224,3.85578486,3127.6,3126.0,2.55917]
[1720586281427,2.8523,3127.6,3126.0,2.55917]
[1720586281630,1.67299225,3128.0,3125.8,8.69733]
[1720586281631,1.00348486,3127.9,3126.7,3.775]
[1720586281865,1.00348486,3128.3,3127.1,6.061]
[1720586282179,1.55348486,3128.6,3127.2,0.06394315]
[1720586282394,1.55348486,3128.6,3127.3,2.62203254]
[1720586282395,0.5175037,3128.6,3127.3,2.62203254]
[1720586282559,2.3219,3128.7,3127.4,3.0]
[1720586282741,3.32538486,3128.7,3127.4,3.0]
[1720586283086,3.32548435,3128.7,3127.2,3.0]
[1720586283378,2.3219,3128.7,3127.3,0.063939]
[1720586283579,2.3219,3128.7,3127.2,3.0]
[1720586283947,3.32548435,3128.7,3127.2,3.0]
[1720586284149,3.32548435,3128.7,3127.2,3.06393905]
[1720586284348,2.3219,3128.7,3127.3,2.622009]
[1720586284578,2.3219,3128.7,3127.4,3.0]
[1720586285155,1.10776439,3128.6,3127.4,3.0]
[1720586285354,1.10776439,3128.6,3127.1,8.61927]
[1720586285355,1.00358435,3128.6,3127.2,3.0]
[1720586285560,3.32548435,3128.7,3127.2,3.0]
[1720586286077,1.107762,3128.6,3127.2,3.0]
[1720586286279,3.32558991,3128.7,3127.2,3.0]
[1720586286801,3.32557308,3128.7,3127.2,3.0]
[1720586287674,1.00367308,3128.5,3127.2,3.0]
[1720586287880,1.10772968,3128.4,3127.2,3.0]
[1720586288089,3.32557308,3128.7,3127.3,2.6220518]
[1720586288300,1.10774234,3128.6,3127.4,3.06393481]
[1720586288592,1.00367308,3128.8,3127.5,6.1518]
[1720586288808,1.00367308,3129.0,3127.6,5.62171903]
[1720586288947,1.10761265,3128.9,3127.6,5.55779]
[1720586289150,1.10761265,3128.8,3127.6,3.0]
[1720586289485,1.10771966,3128.7,3127.6,3.0]
[1720586289647,1.10771966,3128.7,3127.1,3.93044263]
[1720586289648,1.31885893,3128.6,3127.2,3.0]
[1720586289959,1.10771966,3128.5,3127.2,5.55819]
[1720586290167,1.10771966,3128.5,3127.3,2.55807]
[1720586290346,1.10771966,3128.6,3127.4,3.0]
[1720586290860,1.10771966,3128.6,3127.2,5.55819]
[1720586291201,1.10771966,3128.6,3127.1,3.93044263]
[1720586291202,2.4777,3128.5,3127.1,3.93044263]
[1720586291492,1.00367308,3128.1,3126.6,6.33367]
[1720586291694,1.00367308,3128.2,3126.6,6.33367]
[1720586291897,2.11139274,3128.1,3126.6,6.33367]
[1720586292188,1.10771966,3128.0,3126.6,3.775]
[1720586292422,4.00367308,3128.2,3126.6,3.775]
[1720586292572,2.3771,3127.8,3126.2,3.775]
[1720586292909,1.10802906,3127.7,3126.2,3.775]
[1720586293115,2.11170214,3127.7,3126.2,3.775]
[1720586293277,2.11170214,3127.7,3126.1,2.3542]
[1720586293278,2.66170214,3127.6,3126.1,2.3542]
[1720586293474,1.10802906,3127.5,3126.1,2.3542]
[1720586293691,0.26617021,3127.4,3126.1,2.3542]
[1720586294025,1.00367308,3127.2,3125.5,2.4745]
[1720586294168,2.11193098,3127.1,3125.5,2.4745]
[1720586294373,2.00327408,3127.0,3125.5,2.4745]
[1720586294568,4.89868926,3127.0,3125.5,2.4745]
[1720586294818,4.89868926,3127.0,3125.1,2.71861338]
[1720586294819,1.00367308,3126.9,3125.1,0.15871338]
[1720586295107,1.00367308,3126.6,3125.0,6.2495]
[1720586295270,1.00367308,3126.4,3125.0,6.2495]
[1720586295472,4.00367308,3126.5,3125.0,6.2495]
[1720586295671,0.55,3126.4,3125.0,6.2495]
[1720586296974,0.55,3126.4,3124.6,3.775]
[1720586297618,1.55359163,3126.4,3124.6,3.775]
[1720586297825,4.55359163,3126.4,3124.6,3.775]
[1720586298011,2.3705,3126.2,3124.6,3.775]
[1720586298227,3.37409163,3126.2,3124.6,3.775]
[1720586298410,3.55,3126.1,3124.2,3.775]
[1720586298613,2.3705,3125.9,3124.0,2.3799]
[1720586298810,3.37409163,3125.9,3124.0,2.3799]
[1720586299011,3.55,3125.8,3124.0,2.3799]
[1720586300161,3.55,3125.8,3123.8,3.775]
[1720586300162,2.3285,3125.7,3123.8,3.775]
[1720586300436,2.6835,3125.7,3123.5,2.3868]
[1720586300644,0.55,3125.6,3123.5,2.3868]
[1720586301140,3.55,3125.6,3123.5,2.3868]
[1720586302832,2.3285,3125.5,3123.5,2.3868]
[1720586303038,2.2702,3125.3,3123.0,3.775]
[1720586303573,2.2702,3125.1,3123.0,3.775]
[1720586303752,0.83202,3125.0,3123.0,3.775]
[1720586304107,3.83202,3125.0,3123.0,3.775]
[1720586304454,2.2702,3124.9,3123.1,0.06402265]
[1720586304758,0.55,3124.8,3123.0,6.40064368]
[1720586304968,0.58785,3125.4,3122.8,0.16250527]
[1720586304969,2.2702,3125.4,3123.8,3.775]
[1720586305164,2.2702,3125.4,3124.2,3.775]
[1720586306031,2.2702,3125.4,3124.0,6.33581]
[1720586306210,2.2702,3125.4,3124.1,3.0]
[1720586306804,2.2702,3125.4,3124.1,3.06400068]
[1720586307408,2.2702,3125.4,3124.1,3.0]
[1720586308031,2.2702,3125.4,3124.1,3.06400069]
[1720586308242,2.2702,3125.4,3124.1,5.62473069]
[1720586308750,2.2702,3125.4,3124.1,3.06400069]
[1720586309132,2.2702,3125.4,3124.1,3.0]
[1720586309823,2.2702,3125.4,3124.1,5.56072]
[1720586310010,2.3764,3126.5,3124.1,5.56072]
[1720586310212,0.55,3126.4,3124.1,5.56072]
[1720586310414,3.55,3126.4,3124.1,3.06400065]
[1720586310710,0.59264,3126.3,3124.4,6.33547]
[1720586310932,0.59264,3126.3,3124.8,6.33515]
[1720586311172,2.3764,3126.5,3124.8,3.775]
[1720586311540,2.3764,3126.5,3124.8,6.33515]
[1720586312238,2.3764,3126.5,3124.9,5.56007]
[1720586312441,2.3764,3126.5,3125.0,2.55998]
[1720586312641,2.3764,3126.5,3125.1,3.06398274]
[1720586313234,2.3764,3126.5,3125.1,3.0]
[1720586313453,2.3764,3126.5,3124.9,5.56008]
[1720586313824,2.3764,3126.5,3125.0,2.55999]
[1720586314046,2.3764,3126.5,3125.1,3.0]
[1720586314373,2.2753,3127.2,3125.2,3.775]
[1720586314538,2.2753,3127.2,3125.3,3.0]
[1720586315164,2.2753,3127.2,3125.4,2.3648]
[1720586315456,0.52753,3127.1,3125.5,0.06397716]
[1720586315633,2.2753,3127.2,3125.5,0.06397716]
[1720586316036,0.55,3127.1,3125.5,3.06397716]
[1720586316241,0.83253,3127.1,3125.5,3.0]
[1720586316449,0.83253,3127.1,3125.4,5.3648]
[1720586316624,0.28253,3127.1,3125.4,5.3648]
[1720586316820,3.28253,3127.1,3125.4,5.3648]
[1720586317122,3.28253,3127.1,3125.4,7.92439]
[1720586317123,0.555783,3127.0,3125.4,7.92439]
[1720586317324,0.555783,3127.0,3125.4,5.3648]
[1720586317532,0.555783,3127.0,3125.3,5.55975]
[1720586317775,0.3838313,3126.9,3125.3,5.55975]
[1720586318083,0.55,3126.8,3125.3,5.55975]
[1720586318251,0.55,3126.8,3125.4,0.06397714]
[1720586318437,0.555783,3127.0,3125.4,0.06397714]
[1720586318880,2.2753,3127.2,3125.7,2.55935]
[1720586319173,2.2753,3127.2,3125.8,5.62327787]
[1720586319391,2.2753,3127.2,3125.9,2.55924]
[1720586319674,3.0,3128.8,3125.9,2.55924]
[1720586319675,2.3609,3127.9,3126.4,6.33377]
[1720586319971,2.3609,3127.9,3126.5,5.55876]
[1720586320176,2.3609,3127.9,3126.6,2.62263205]
[1720586320380,2.388,3128.9,3126.8,3.775]
[1720586320554,2.388,3128.9,3127.0,2.55835]
[1720586321283,2.388,3128.9,3127.1,3.06394344]
[1720586321444,2.388,3128.9,3127.1,5.62221344]
[1720586321645,0.2388,3128.8,3127.1,5.55827]
[1720586321951,0.2388,3128.8,3127.1,3.0]
[1720586322151,0.2388,3128.8,3127.0,3.0]
[1720586322552,0.2388,3128.8,3126.9,3.0]
[1720586322779,0.26268,3128.7,3126.9,3.0]
[1720586322977,2.3017,3128.5,3126.4,3.775]
[1720586323180,0.55,3128.4,3126.6,2.55861]
[1720586323383,3.55,3128.4,3126.7,3.0]
[1720586323586,0.58517,3128.3,3126.5,3.0]
[1720586323753,2.8517,3128.2,3126.0,3.775]
[1720586323953,3.0,3128.1,3126.0,3.775]
[1720586324169,0.55,3128.0,3126.0,3.775]
[1720586324695,2.3017,3127.9,3125.9,2.4983]
[1720586324983,2.3017,3127.7,3125.6,3.775]
[1720586325146,0.55,3127.6,3125.6,3.775]
[1720586325760,3.55,3127.6,3125.6,3.775]
[1720586326681,3.55,3127.6,3125.7,3.0]
[1720586329062,2.476,3127.5,3125.7,3.0]
[1720586329287,0.55,3127.4,3125.4,2.4983]
[1720586329445,1.1526,3127.4,3125.4,2.4983]
[1720586329649,4.1526,3127.4,3125.4,2.4983]
[1720586330069,4.1526,3127.4,3125.4,5.05792]
[1720586330311,4.1526,3127.4,3125.5,3.0]
[1720586331405,4.1526,3127.4,3125.4,2.4983]
[1720586331587,0.66286,3127.3,3125.4,2.4983]
[1720586331903,0.55,3127.2,3125.4,2.4983]
[1720586332268,2.4862,3127.1,3125.2,3.775]
[1720586332611,0.85362,3127.0,3125.2,3.775]
[1720586332971,3.85362,3127.0,3125.2,3.775]
[1720586333362,3.85362,3127.0,3125.3,0.06397836]
[1720586333674,3.85362,3127.0,3125.3,5.62370836]
[1720586333894,3.0,3127.0,3125.6,3.775]
[1720586334094,2.4862,3127.1,3125.7,3.06396751]
[1720586334268,2.4862,3127.1,3125.8,0.06396664]
[1720586335212,2.4862,3127.1,3125.7,3.0]
[1720586335510,2.4862,3127.1,3125.1,6.33491]
[1720586335511,1.10840838,3127.0,3125.1,6.33491]
[1720586335804,1.10840838,3127.0,3125.2,3.0]
[1720586335805,3.0,3127.0,3125.2,3.0]
[1720586336007,0.55,3126.9,3125.2,3.0]
[1720586337501,1.10842307,3126.8,3125.2,3.0]
[1720586337706,1.65842307,3126.7,3125.2,3.0]
[1720586337905,0.55,3126.9,3125.2,3.0]
[1720586338114,1.46343887,3126.8,3125.2,3.0]
[1720586338314,0.55,3126.7,3125.2,3.0]
[1720586339595,1.10839302,3126.6,3125.2,3.0]
[1720586339794,0.55,3126.7,3125.2,3.0]
[1720586339996,1.10843277,3126.6,3125.2,3.0]
[1720586340192,0.55,3126.7,3125.2,3.0]
[1720586340500,1.10842979,3126.6,3125.2,5.55982]
[1720586340848,0.355,3126.8,3125.2,5.55982]
[1720586340849,1.10842979,3126.5,3125.2,5.55982]
[1720586341005,0.355,3126.8,3125.3,2.55974]
[1720586341200,3.0,3127.0,3125.4,3.0]
[1720586341201,1.10841943,3126.7,3125.4,3.0]
[1720586341401,3.0,3127.0,3125.4,3.0]
[1720586341402,1.10841943,3126.6,3125.4,3.0]
[1720586341610,3.0,3127.0,3125.2,3.0]
[1720586341611,1.10841943,3126.5,3125.2,3.0]
[1720586341790,1.10841943,3126.8,3125.2,3.0]
[1720586341994,0.55,3126.7,3125.2,3.0]
[1720586342193,1.10848999,3126.6,3125.2,3.0]
[1720586342389,1.10848999,3126.5,3125.2,3.0]
[1720586342610,0.55,3126.7,3125.2,3.0]
[1720586342611,1.10848999,3126.6,3125.2,3.0]
[1720586342810,1.10848999,3126.5,3125.2,5.55982]
[1720586343054,1.10848999,3126.4,3125.2,5.55982]
[1720586343259,0.55,3126.7,3125.2,5.55982]
[1720586343436,1.10844096,3126.6,3125.2,5.55982]
[1720586343753,1.10844096,3126.5,3125.2,5.55982]
[1720586343911,0.55,3126.9,3125.2,5.55982]
[1720586343912,1.10844096,3126.4,3125.3,2.55975]
[1720586344115,0.55,3126.9,3125.4,3.0]
[1720586344407,1.10840958,3126.8,3125.5,6.39855537]
[1720586344611,1.10840958,3126.7,3125.7,2.5594]
[1720586344811,2.4862,3127.1,3125.8,5.51206881]
[1720586345060,1.10828589,3127.0,3125.8,5.51206881]
[1720586345239,1.10828589,3126.9,3125.8,5.51206881]
[1720586345439,1.10828305,3126.8,3125.8,5.51206881]
[1720586345640,2.4862,3127.1,3125.8,5.51206881]
[1720586345843,1.10827583,3127.0,3125.8,5.51206881]
[1720586346043,1.10827583,3126.9,3125.8,5.51206881]
[1720586346243,1.10827583,3126.8,3125.8,5.4481]
[1720586346532,0.4002588,3127.5,3126.0,2.55916]
[1720586346762,1.1082584,3127.4,3126.0,2.55916]
[1720586346965,1.1082584,3127.3,3126.0,2.55916]
[1720586347269,1.1082584,3127.2,3126.0,2.55916]
[1720586347567,0.57638588,3127.4,3126.0,2.55916]
[1720586347568,1.1082584,3127.1,3126.0,2.55916]
[1720586347869,1.1082584,3127.0,3126.0,2.55916]
[1720586348072,0.57638588,3127.4,3126.0,2.55916]
[1720586348281,1.10825302,3127.3,3125.8,8.00743]
[1720586348483,2.3152,3127.1,3125.3,2.4133]
[1720586348795,2.66093964,3127.0,3125.3,2.4133]
[1720586348972,5.11093964,3126.9,3125.3,2.4133]
[1720586349177,1.65846469,3126.8,3125.3,2.4133]
[1720586349334,1.10846469,3126.7,3125.4,0.06397763]
[1720586349527,1.77504423,3126.7,3125.4,0.06397763]
[1720586349768,1.10846469,3126.6,3125.3,2.4133]
[1720586349964,1.10843853,3126.5,3125.3,5.4133]
[1720586350196,1.10843853,3126.6,3125.3,7.97303]
[1720586350481,1.10843853,3126.5,3125.3,7.97303]
[1720586350692,1.10843853,3126.5,3125.3,5.4133]
[1720586350890,2.11210387,3126.5,3125.3,5.4133]
[1720586351095,3.46616534,3126.2,3124.8,2.3879]
[1720586351296,2.11210387,3126.1,3124.8,2.3879]
[1720586351446,2.11210387,3126.0,3124.8,2.3879]
[1720586351647,0.34503243,3125.9,3124.8,2.3879]
[1720586351983,1.10869613,3125.8,3124.8,2.3879]
[1720586352141,1.10869613,3125.7,3124.8,2.3879]
[1720586352541,2.11472761,3125.8,3124.8,2.3879]